bitfinex/quotes_ETHUSD_20250129
["timestamp","ask_amount","ask_price","bid_price","bid_amount"]
[1738122072359,3.19555,3129.4,3128.8,3.19604]
[1738122072561,3.19555,3129.4,3129.2,0.0789397]
[1738122072803,3.19555,3129.4,3128.8,3.91759681]
[1738122073001,3.19555,3129.4,3129.3,0.0789397]
[1738122073205,3.19563,3129.3,3128.8,0.72155681]
[1738122073918,3.0,3129.5,3128.8,3.91764681]
[1738122074301,3.1956,3129.3,3128.8,3.91764681]
[1738122075097,3.1956,3129.3,3128.9,0.0789397]
[1738122076115,3.84403937,3129.7,3129.0,3.19589]
[1738122076285,3.0,3129.6,3129.1,0.7746]
[1738122076494,6.19532,3129.6,3129.1,0.8535397]
[1738122076904,3.98219,3129.8,3129.1,4.0493197]
[1738122077229,3.19509,3129.8,3129.2,0.03195506]
[1738122077430,0.1632688,3130.0,3129.1,0.8535397]
[1738122077640,3.1954,3129.5,3129.1,0.7746]
[1738122077831,3.19526,3129.7,3129.2,0.0789397]
[1738122078524,3.19519,3129.8,3129.2,0.0789397]
[1738122078906,3.19552,3129.4,3129.2,0.0789397]
[1738122079216,3.1956,3129.3,3129.2,0.0789397]
[1738122079927,3.1956,3129.3,3128.9,0.37869219]
[1738122080267,3.1956,3129.3,3129.2,0.0789397]
[1738122080463,3.1956,3129.3,3128.9,0.37869219]
[1738122080613,3.1956,3129.3,3129.0,0.0789397]
[1738122080813,0.7725,3129.7,3129.0,0.03195724]
[1738122081024,3.19526,3129.7,3129.1,0.43960564]
[1738122081234,0.7725,3129.9,3129.1,0.43960564]
[1738122081450,3.19538,3129.6,3129.1,0.0789397]
[1738122081741,3.19538,3129.6,3128.9,3.46452969]
[1738122081945,6.39076,3129.6,3129.2,0.07820087]
[1738122082148,6.39076,3129.6,3128.9,3.19591]
[1738122082445,3.1955,3129.4,3129.3,0.07820087]
[1738122082615,3.1955,3129.4,3129.3,0.07809042]
[1738122082948,3.1955,3129.4,3128.8,0.7683]
[1738122083146,3.1955,3129.4,3129.3,0.07809042]
[1738122083324,3.1955,3129.4,3128.8,1.24164357]
[1738122083527,3.1955,3129.4,3129.3,0.07809042]
[1738122083910,3.1955,3129.4,3128.8,1.24164357]
[1738122084111,3.19561,3129.3,3128.8,1.24164357]
[1738122084342,3.19578,3129.2,3128.8,1.24164357]
[1738122084516,3.19579,3129.2,3128.8,1.24164357]
[1738122084716,3.19579,3129.2,3128.8,0.7683]
[1738122085143,3.19561,3129.3,3128.8,0.7683]
[1738122085350,3.19571,3129.2,3128.8,0.7683]
[1738122085707,3.19561,3129.3,3128.8,0.7683]
[1738122086108,0.7684,3129.4,3128.8,0.80026]
[1738122086313,6.39091,3129.5,3128.8,4.44923396]
[1738122087340,3.19542,3129.5,3128.8,4.44923396]
[1738122087526,3.19542,3129.5,3128.8,4.48119204]
[1738122087723,3.19521,3129.7,3128.9,3.198]
[1738122087927,3.19521,3129.7,3129.1,3.19573]
[1738122090259,3.19521,3129.7,3129.2,0.07810422]
[1738122090853,3.1953,3129.6,3129.2,0.07810422]
[1738122091231,3.1953,3129.6,3129.0,6.39388]
[1738122091428,3.1953,3129.6,3129.3,0.07810422]
[1738122091636,3.1953,3129.6,3129.0,7.24294006]
[1738122092153,3.1953,3129.6,3129.1,0.07810422]
[1738122092454,3.1953,3129.6,3129.1,0.31478889]
[1738122092661,3.19509,3129.8,3129.1,3.51048889]
[1738122092953,6.39028,3129.8,3129.1,4.34300972]
[1738122093156,3.19525,3129.7,3129.1,4.31105571]
[1738122093359,3.19525,3129.7,3129.1,3.51048889]
[1738122093756,3.19525,3129.7,3129.1,3.27380422]
[1738122094058,0.9237688,3130.0,3129.1,0.07810422]
[1738122094260,3.1952,3129.7,3129.1,0.07810422]
[1738122094421,3.1952,3129.7,3129.0,3.19582]
[1738122094622,3.1952,3129.7,3129.2,0.90688332]
[1738122094823,3.1953,3129.6,3129.2,0.829]
[1738122095251,3.1953,3129.6,3129.3,0.07788332]
[1738122095634,3.1953,3129.6,3129.2,0.829]
[1738122096158,3.1953,3129.6,3129.3,0.07788332]
[1738122096460,3.19521,3129.7,3129.2,0.829]
[1738122096660,3.19521,3129.7,3129.4,0.07788332]
[1738122096846,3.19531,3129.6,3129.2,0.829]
[1738122097023,3.19531,3129.6,3129.5,0.07788332]
[1738122097343,3.19544,3129.5,3129.2,0.829]
[1738122097742,3.19531,3129.6,3129.2,0.829]
[1738122098044,3.19531,3129.6,3129.2,1.55448341]
[1738122098239,3.19513,3129.8,3129.2,1.55448341]
[1738122098460,3.19531,3129.6,3129.2,0.829]
[1738122099470,3.19558,3129.4,3128.9,0.7694]
[1738122099782,3.19558,3129.4,3129.0,0.37939644]
[1738122100368,3.19533,3129.6,3129.0,3.57739644]
[1738122100536,3.19544,3129.5,3129.0,1.13367908]
[1738122100736,3.19544,3129.5,3129.1,0.23723207]
[1738122101844,3.19556,3129.4,3129.1,0.23723207]
[1738122102072,3.19556,3129.4,3128.9,0.7694]
[1738122102276,3.19556,3129.4,3128.9,1.16914678]
[1738122103052,3.19541,3129.5,3128.9,7.56314678]
[1738122103470,0.8064,3129.7,3129.0,0.2372802]
[1738122103698,6.7458,3129.1,3129.0,0.2372802]
[1738122103906,7.5449,3129.0,3128.9,8.33e-06]
[1738122104116,3.19661,3128.4,3127.8,0.7993]
[1738122104307,3.19669,3128.3,3127.8,0.7993]
[1738122104467,3.19661,3128.4,3127.8,0.7993]
[1738122104668,3.19649,3128.5,3127.9,0.03196774]
[1738122105077,3.19642,3128.5,3127.9,3.22894774]
[1738122105281,3.19642,3128.5,3128.2,0.06499686]
[1738122105818,3.19647,3128.5,3128.2,0.06499686]
[1738122107216,3.19621,3128.7,3128.3,0.8105]
[1738122107422,3.19638,3128.6,3128.3,0.8105]
[1738122107730,3.19643,3128.5,3128.4,0.0655486]
[1738122107873,3.19643,3128.5,3128.1,2.532]
[1738122108074,3.19659,3128.4,3128.1,2.532]
[1738122108290,3.19659,3128.4,3128.2,0.0655486]
[1738122109115,3.19662,3128.3,3128.2,0.0655486]
[1738122109470,3.19662,3128.3,3128.0,0.7635]
[1738122110129,3.19662,3128.3,3128.1,0.06556239]
[1738122110409,3.19662,3128.3,3128.0,0.7635]
[1738122110608,3.19662,3128.3,3128.2,0.06556239]
[1738122110785,3.19662,3128.3,3128.0,0.7635]
[1738122110985,3.19662,3128.3,3128.2,0.06556239]
[1738122111197,3.19662,3128.3,3128.0,0.7635]
[1738122111412,3.19662,3128.3,3128.2,0.06556239]
[1738122111613,3.19662,3128.3,3128.0,0.7635]
[1738122111800,3.19662,3128.3,3128.2,0.06556239]
[1738122112001,3.19662,3128.3,3128.0,0.7635]
[1738122112172,3.19662,3128.3,3128.2,0.06556239]
[1738122112378,3.19662,3128.3,3128.0,0.7635]
[1738122112587,3.19662,3128.3,3128.1,0.06556239]
[1738122112794,3.19672,3128.2,3128.1,0.06556239]
[1738122113072,3.19688,3128.1,3127.7,0.8029]
[1738122113510,3.19688,3128.1,3127.8,0.06556239]
[1738122113924,3.19688,3128.1,3127.7,0.8029]
[1738122114085,3.19688,3128.1,3127.9,0.06556239]
[1738122114283,3.19688,3128.1,3127.7,0.8029]
[1738122114881,3.19688,3128.1,3127.8,0.06556239]
[1738122115228,3.19646,3128.5,3127.8,3.19711]
[1738122115396,3.19652,3128.4,3127.9,0.06556239]
[1738122117219,3.19664,3128.3,3127.9,0.06556239]
[1738122122634,3.19693,3128.0,3127.9,0.06556239]
[1738122123156,0.319664,3128.3,3127.0,3.1979]
[1738122123157,3.19756,3127.4,3127.0,0.8205]
[1738122123309,3.19785,3127.1,3127.0,0.8205]
[1738122123631,3.19767,3127.3,3126.6,0.85247911]
[1738122123836,3.19732,3127.7,3127.0,3.19789]
[1738122124131,3.19732,3127.7,3127.1,0.8205]
[1738122124334,3.19741,3127.6,3127.1,0.8205]
[1738122124631,3.19761,3127.4,3127.1,0.8205]
[1738122124850,0.639512,3127.4,3126.8,0.8088]
[1738122124987,3.19804,3127.0,3126.3,3.19859]
[1738122125181,3.19804,3127.0,3126.4,3.19856]
[1738122126305,3.19805,3126.9,3126.2,4.00756]
[1738122126492,3.19804,3127.0,3126.3,3.2]
[1738122126808,3.19828,3126.7,3126.2,0.8088]
[1738122126986,3.19847,3126.5,3126.1,3.9978]
[1738122127492,3.19876,3126.3,3126.0,2.533]
[1738122128040,3.19847,3126.5,3126.0,2.533]
[1738122128183,3.19857,3126.4,3126.0,2.533]
[1738122128615,3.19847,3126.5,3126.0,2.533]
[1738122128616,3.1987,3126.3,3126.0,2.533]
[1738122128822,3.518317,3126.5,3126.0,2.533]
[1738122129388,3.19867,3126.3,3126.0,2.533]
[1738122129636,3.19887,3126.1,3126.0,2.533]
[1738122130281,3.74887,3126.1,3126.0,2.533]
[1738122130485,7.8416,3126.1,3126.0,2.533]
[1738122130716,8.6226,3126.1,3126.0,2.533]
[1738122131106,6.97987,3126.1,3126.0,2.533]
[1738122131304,6.19887,3126.1,3126.0,2.533]
[1738122131690,6.19887,3126.1,3126.0,2.59526901]
[1738122132096,3.19887,3126.1,3126.0,2.59526901]
[1738122133542,3.19867,3126.3,3126.0,2.59526901]
[1738122134044,0.319847,3126.5,3126.0,2.59526901]
[1738122134348,3.1988,3126.2,3126.0,2.59526901]
[1738122135524,3.19887,3126.1,3126.0,2.59526901]
[1738122136124,3.19887,3126.1,3126.0,2.533]
[1738122136342,3.838637,3126.1,3126.0,2.533]
[1738122136550,4.652037,3126.1,3126.0,2.533]
[1738122138614,7.652037,3126.1,3126.0,2.533]
[1738122139348,8.202037,3126.1,3126.0,2.533]
[1738122140246,0.55,3126.0,3124.4,3.0]
[1738122140450,5.003167,3126.1,3124.4,3.0]
[1738122140451,3.19979,3125.2,3124.8,0.763]
[1738122140613,3.1997,3125.3,3124.8,0.763]
[1738122140951,3.1998,3125.2,3124.8,0.763]
[1738122141241,3.1998,3125.2,3124.9,0.06285568]
[1738122142134,3.1997,3125.3,3124.9,0.06285568]
[1738122142336,3.19951,3125.5,3124.9,0.09485469]
[1738122142635,0.5553167,3125.9,3124.9,4.22845788]
[1738122142942,3.19935,3125.7,3125.0,4.01711]
[1738122143344,3.19935,3125.7,3125.1,0.06367021]
[1738122143511,3.19935,3125.7,3125.1,3.26350021]
[1738122143848,3.1994,3125.6,3125.1,0.06367021]
[1738122144210,3.19949,3125.5,3125.1,0.06367021]
[1738122144418,3.19935,3125.7,3125.1,0.06367021]
[1738122144716,3.19944,3125.6,3125.1,0.06367021]
[1738122145151,3.19915,3125.9,3125.3,3.19967]
[1738122145448,3.19873,3126.3,3125.4,7.31319778]
[1738122145746,3.19883,3126.2,3125.6,3.19931]
[1738122146247,3.19883,3126.2,3125.7,0.06348378]
[1738122150258,3.19887,3126.1,3125.7,0.06348378]
[1738122150777,3.19907,3125.9,3125.8,0.06316623]
[1738122150980,0.63977,3126.1,3124.9,3.18422961]
[1738122150981,3.99976,3126.1,3125.3,0.8323]
[1738122151178,3.99976,3126.1,3125.0,0.259]
[1738122151179,3.19959,3125.4,3125.0,0.8323]
[1738122151480,3.19951,3125.5,3125.0,0.8323]
[1738122151720,3.19951,3125.5,3124.9,2.535]
[1738122151721,3.2,3125.0,3124.9,2.535]
[1738122152975,3.20027,3124.8,3124.4,0.779]
[1738122153595,3.2,3125.0,3124.5,0.23740995]
[1738122154099,3.19991,3125.1,3124.5,3.46989334]
[1738122154398,3.19983,3125.2,3124.6,0.06075005]
[1738122154565,3.20006,3125.0,3124.6,0.06075005]
[1738122155102,3.20006,3125.0,3124.6,0.29816]
[1738122155452,3.519813,3125.2,3124.6,0.29816]
[1738122155654,3.19993,3125.1,3124.6,0.29816]
[1738122156494,3.1996,3125.4,3124.8,3.98959]
[1738122157188,3.1996,3125.4,3124.9,0.06075005]
[1738122157395,6.39928,3125.4,3124.9,0.06075005]
[1738122157692,6.39928,3125.4,3124.8,3.98959]
[1738122157693,3.19974,3125.3,3124.8,0.7894]
[1738122158090,3.19974,3125.3,3124.9,0.06075005]
[1738122158292,0.8293,3125.9,3124.9,3.69782227]
[1738122158499,3.19933,3125.7,3125.1,3.19985]
[1738122159200,3.19933,3125.7,3125.2,0.06075005]
[1738122159696,3.19926,3125.8,3125.2,0.06075005]
[1738122159853,3.19941,3125.6,3125.2,0.06075005]
[1738122160253,3.19941,3125.6,3125.2,0.29839683]
[1738122161388,3.19926,3125.8,3125.2,0.29839683]
[1738122161587,3.19926,3125.8,3125.3,0.7921]
[1738122161791,3.1994,3125.6,3125.3,0.7921]
[1738122162494,3.1994,3125.6,3125.4,0.06075005]
[1738122163204,3.519186,3125.8,3125.4,0.06075005]
[1738122163409,3.19933,3125.7,3125.4,0.06075005]
[1738122165999,3.19926,3125.8,3125.4,0.06075005]
[1738122166294,3.19934,3125.7,3125.4,0.06075005]
[1738122168511,6.9767,3126.2,3125.4,3.26031005]
[1738122168512,3.19904,3126.0,3125.4,3.26031005]
[1738122168806,6.34811,3126.0,3125.4,3.66877049]
[1738122169211,3.19908,3125.9,3125.4,3.66877049]
[1738122169575,3.19909,3125.9,3125.4,3.66877049]
[1738122171507,3.19919,3125.8,3125.4,0.46919049]
[1738122171713,0.7779,3126.2,3125.4,0.06075005]
[1738122171714,3.19946,3125.6,3125.4,0.06075005]
[1738122171892,3.19948,3125.5,3125.4,0.06075005]
[1738122172079,3.19948,3125.5,3125.1,0.7674]
[1738122172420,3.19894,3126.1,3125.1,0.7674]
[1738122172610,3.19933,3125.7,3125.2,0.06129539]
[1738122172792,3.19938,3125.6,3125.2,0.06129539]
[1738122173300,3.1995,3125.5,3125.2,0.29915807]
[1738122178820,3.1995,3125.5,3125.2,0.06129539]
[1738122180328,3.1995,3125.5,3125.3,0.2381421]
[1738122180785,3.1995,3125.5,3125.4,0.06129539]
[1738122180986,3.19933,3125.7,3125.4,0.06129539]
[1738122181287,0.65635606,3126.3,3125.8,3.1991]
[1738122181506,3.85509606,3126.3,3125.6,3.19931]
[1738122181699,3.19888,3126.1,3125.9,0.06145418]
[1738122181900,3.19888,3126.1,3125.6,6.40031]
[1738122182097,3.19888,3126.1,3126.0,0.06145418]
[1738122182329,3.19925,3125.8,3125.3,0.8151]
[1738122182633,3.19936,3125.7,3125.3,0.8151]
[1738122183228,3.19943,3125.6,3124.9,0.7948]
[1738122183439,3.19959,3125.4,3124.9,0.7948]
[1738122184322,3.19943,3125.6,3125.0,0.23826395]
[1738122184993,6.3989,3125.6,3125.0,3.43825395]
[1738122185576,3.19943,3125.6,3125.1,0.23826395]
[1738122185713,3.19949,3125.5,3125.1,0.23826395]
[1738122186306,6.39891,3125.6,3125.1,0.23826395]
[1738122186826,6.39891,3125.6,3125.2,0.23826395]
[1738122188034,3.19943,3125.6,3125.2,0.23826395]
[1738122188216,3.19943,3125.6,3125.3,0.23826395]
[1738122188691,3.19928,3125.7,3125.3,0.23826395]
[1738122189531,3.19938,3125.6,3125.4,0.23826395]
[1738122190033,3.19948,3125.5,3125.4,0.23826395]
[1738122190634,3.19938,3125.6,3125.0,3.202]
[1738122190934,3.19938,3125.6,3125.0,7.121661]
[1738122191731,3.19938,3125.6,3125.1,0.23842205]
[1738122192837,0.7936,3126.0,3125.1,0.23842205]
[1738122193075,3.19979,3125.2,3125.1,0.23842205]
[1738122193210,3.19991,3125.1,3124.6,3.9965]
[1738122193405,3.95577,3125.3,3124.7,3.20022]
[1738122193806,3.19977,3125.3,3124.7,3.20022]
[1738122194538,3.19977,3125.3,3124.8,0.23836536]
[1738122194738,0.7897,3125.6,3124.8,0.23836536]
[1738122194937,3.19985,3125.2,3124.8,0.23836536]
[1738122195234,3.19985,3125.2,3124.9,0.06145418]
[1738122195601,3.19999,3125.1,3124.9,0.06145418]
[1738122195806,3.2,3125.0,3124.9,0.06145418]
[1738122196240,3.2,3125.0,3124.6,0.7961]
[1738122196533,3.2,3125.0,3124.7,0.05988038]
[1738122198545,0.55,3125.9,3124.8,0.23829363]
[1738122198546,3.20016,3124.9,3124.8,0.23829363]
[1738122198908,3.20016,3124.9,3124.8,0.29820851]
[1738122199838,6.20016,3124.9,3124.8,0.29820851]
[1738122200151,6.20016,3124.9,3124.8,0.23829363]
[1738122200328,3.20057,3124.5,3124.1,0.7623]
[1738122200656,3.20063,3124.4,3124.2,0.05991488]
[1738122200840,3.20063,3124.4,3123.9,0.7623]
[1738122201046,3.20063,3124.4,3124.0,0.05991488]
[1738122201745,3.20063,3124.4,3124.0,0.29810973]
[1738122201932,3.20057,3124.5,3124.0,0.29810973]
[1738122202142,3.20075,3124.3,3124.0,0.29810973]
[1738122202537,3.20092,3124.1,3124.0,0.29810973]
[1738122203220,3.95912,3124.1,3124.0,0.29810973]
[1738122203615,3.95912,3124.1,3124.0,0.23819485]
[1738122204853,3.20114,3123.9,3123.4,3.43981485]
[1738122205158,3.20114,3123.9,3123.5,0.05991488]
[1738122205957,6.40236,3123.9,3123.5,0.05991488]
[1738122206257,3.20114,3123.9,3123.5,0.05991488]
[1738122206757,3.20114,3123.9,3123.3,0.7623]
[1738122206923,3.20114,3123.9,3123.6,0.06170258]
[1738122207123,6.40235,3123.9,3123.3,0.7623]
[1738122207323,6.40235,3123.9,3123.7,0.06170258]
[1738122207520,6.40235,3123.9,3123.3,0.7623]
[1738122207949,3.20124,3123.8,3123.4,0.06170258]
[1738122208456,3.20114,3123.9,3123.4,0.06170258]
[1738122209031,3.95913,3124.1,3123.4,3.26328258]
[1738122209362,3.20093,3124.1,3123.5,3.20146]
[1738122209562,0.1611458,3125.0,3123.5,3.20146]
[1738122209563,0.8058,3124.6,3123.8,0.7629]
[1738122209734,0.8058,3124.9,3123.8,0.7629]
[1738122209949,3.20042,3124.6,3124.0,3.20099]
[1738122210259,3.20042,3124.6,3124.1,0.06143331]
[1738122211263,3.20052,3124.5,3124.1,0.06143331]
[1738122211556,3.20052,3124.5,3123.9,3.20102]
[1738122211861,3.20071,3124.3,3123.8,0.7629]
[1738122212048,3.20071,3124.3,3123.9,3.26443331]
[1738122212643,3.20051,3124.5,3123.9,3.26443331]
[1738122212849,3.20051,3124.5,3124.0,0.40273333]
[1738122213245,3.20051,3124.5,3124.1,0.06143331]
[1738122213762,3.20062,3124.4,3124.1,0.06143331]
[1738122214057,3.20062,3124.4,3123.9,3.203]
[1738122214229,3.20062,3124.4,3124.0,0.06143331]
[1738122216026,3.20022,3124.8,3124.2,3.2008]
[1738122216463,3.20022,3124.8,3124.3,0.06143331]
[1738122216637,3.20022,3124.8,3124.2,3.2008]
[1738122216837,6.40052,3124.8,3124.3,0.06143331]
[1738122217147,3.20022,3124.8,3124.2,3.2008]
[1738122217328,3.20022,3124.8,3124.4,0.06143331]
[1738122217523,3.20042,3124.6,3124.1,0.76]
[1738122217736,3.20042,3124.6,3124.5,0.06143331]
[1738122217936,3.2007,3124.4,3123.8,0.76]
[1738122218566,3.20083,3124.2,3123.8,0.76]
[1738122218855,3.20083,3124.2,3123.8,1.18482889]
[1738122219252,3.20083,3124.2,3123.8,0.76]
[1738122219253,3.20112,3123.9,3123.8,0.76]
[1738122219428,3.20112,3123.9,3123.5,0.76]
[1738122219629,3.20124,3123.8,3123.5,0.76]
[1738122219849,3.20135,3123.7,3123.5,0.76]
[1738122220049,3.20135,3123.7,3123.3,0.76]
[1738122220366,3.20112,3123.9,3123.3,4.93181]
[1738122220566,3.20123,3123.8,3123.3,4.93181]
[1738122221261,3.20112,3123.9,3123.3,4.93181]
[1738122222067,3.20112,3123.9,3123.3,4.93175]
[1738122223160,3.20112,3123.9,3123.3,4.96376448]
[1738122223353,3.20112,3123.9,3123.3,4.93175]
[1738122223553,3.20112,3123.9,3123.4,0.746675]
[1738122223726,3.20097,3124.1,3123.5,3.20151]
[1738122223932,3.20097,3124.1,3123.5,3.23352448]
[1738122224232,3.20052,3124.5,3123.7,0.7506]
[1738122224431,3.20052,3124.5,3123.9,3.2011]
[1738122225076,3.20063,3124.4,3124.0,0.06127453]
[1738122226355,0.7968,3124.8,3124.0,0.06127453]
[1738122226356,6.75092,3124.1,3124.0,0.06127453]
[1738122226556,3.20204,3123.0,3122.7,0.7851]
[1738122226756,3.20225,3122.8,3122.5,2.536]
[1738122226960,3.20237,3122.7,3122.5,2.536]
[1738122227272,3.20245,3122.6,3122.5,2.536]
[1738122228974,6.75245,3122.6,3122.5,2.536]
[1738122229149,3.20286,3122.2,3122.1,0.005]
[1738122229881,4.02406,3122.2,3122.1,0.005]
[1738122230669,7.57406,3122.2,3122.1,0.005]
[1738122231439,7.57406,3122.2,3120.6,3.262]
[1738122231440,0.55,3121.9,3120.7,0.7787]
[1738122231633,3.2041,3121.0,3120.7,0.7787]
[1738122233082,3.2039,3121.2,3120.7,0.7787]
[1738122234047,3.2039,3121.2,3120.8,0.04498193]
[1738122234252,3.2039,3121.2,3120.7,0.7787]
[1738122234459,3.20401,3121.1,3120.8,0.04498193]
[1738122234657,3.2042,3120.9,3120.7,0.7787]
[1738122234870,3.20401,3121.1,3120.8,0.04498193]
[1738122235074,0.8166,3121.5,3120.7,0.7787]
[1738122235272,3.2036,3121.5,3120.8,0.04735714]
[1738122235482,4.00349,3121.9,3120.9,4.0248]
[1738122235671,3.20341,3121.7,3121.0,3.20408]
[1738122235854,3.20341,3121.7,3121.1,3.25335714]
[1738122236700,3.20341,3121.7,3121.1,3.25130714]
[1738122236880,3.20341,3121.7,3121.1,0.04735714]
[1738122237174,3.20341,3121.7,3121.0,3.2041]
[1738122237381,3.20341,3121.7,3121.2,0.04714979]
[1738122237583,3.20341,3121.7,3121.0,3.2041]
[1738122237782,3.20341,3121.7,3121.3,0.04714979]
[1738122237960,4.2641349,3121.7,3121.0,3.2041]
[1738122238156,4.2641349,3121.7,3121.4,0.04714979]
[1738122238157,3.20341,3121.7,3121.4,0.04714979]
[1738122238357,3.20341,3121.7,3121.0,3.2041]
[1738122238558,3.20341,3121.7,3121.5,0.04714979]
[1738122238773,3.20341,3121.7,3121.0,3.2041]
[1738122238976,3.20341,3121.7,3121.6,0.04714979]
[1738122239173,4.2641349,3121.7,3121.0,3.2041]
[1738122239384,3.20341,3121.7,3121.6,0.04714979]
[1738122239690,6.2033,3121.8,3121.6,0.04714979]
[1738122239864,6.2033,3121.8,3121.2,0.7969]
[1738122240069,0.6500625,3122.4,3121.4,0.7969]
[1738122240301,3.20287,3122.2,3121.4,0.82893154]
[1738122240452,3.20284,3122.3,3121.5,0.04736376]
[1738122240655,3.99536,3122.5,3121.9,3.20314]
[1738122240979,3.20266,3122.5,3122.0,0.04736376]
[1738122241371,3.20267,3122.4,3122.0,0.04736376]
[1738122241693,3.20277,3122.3,3121.7,0.799]
[1738122241916,3.20277,3122.3,3121.8,3.25234303]
[1738122243612,3.20288,3122.2,3121.8,3.25234303]
[1738122244840,3.20307,3122.0,3121.8,3.25234303]
[1738122245015,3.20307,3122.0,3121.8,0.04734303]
[1738122245016,3.20317,3121.9,3121.8,0.04734303]
[1738122245397,3.20317,3121.9,3121.7,0.799]
[1738122245603,3.20317,3121.9,3121.8,0.04699075]
[1738122245829,3.20317,3121.9,3121.7,0.799]
[1738122246113,3.20317,3121.9,3121.8,0.04699075]
[1738122246516,3.20299,3122.1,3121.4,0.8172]
[1738122246715,3.20299,3122.1,3121.8,0.04699075]
[1738122246952,3.20299,3122.1,3121.4,4.743458]
[1738122247120,3.20299,3122.1,3121.9,0.04699075]
[1738122247319,3.20299,3122.1,3121.4,4.743458]
[1738122247516,3.20299,3122.1,3122.0,0.04699075]
[1738122247853,6.40649,3121.9,3121.4,0.8172]
[1738122248147,3.20331,3121.8,3121.4,0.8172]
[1738122249168,3.20322,3121.9,3121.4,0.8172]
[1738122249533,3.20298,3122.1,3121.4,0.8172]
[1738122249730,3.20298,3122.1,3121.4,4.02087]
[1738122249927,3.20348,3121.7,3121.1,0.7736]
[1738122250931,3.20348,3121.7,3121.1,3.97759]
[1738122251264,3.20348,3121.7,3121.1,0.7736]
[1738122251265,3.20364,3121.5,3121.1,0.7736]
[1738122251431,6.40732,3121.5,3121.1,0.7736]
[1738122251633,3.20364,3121.5,3121.1,0.7736]
[1738122251836,3.20339,3121.7,3121.1,3.97759]
[1738122252530,3.20348,3121.6,3121.1,0.7736]
[1738122253349,3.20314,3122.0,3121.3,3.20375]
[1738122253668,3.20314,3122.0,3121.5,0.7666]
[1738122253969,3.20319,3121.9,3121.5,0.7666]
[1738122255246,3.20319,3121.9,3121.6,0.045283]
[1738122255943,3.20314,3122.0,3121.6,0.045283]
[1738122256144,3.20268,3122.4,3121.6,3.28069624]
[1738122256344,3.20279,3122.3,3121.6,3.28069624]
[1738122256543,3.20296,3122.2,3121.6,0.045283]
[1738122256743,3.20303,3122.1,3121.6,0.045283]
[1738122256971,3.2031,3122.0,3121.6,0.045283]
[1738122257376,3.2031,3122.0,3121.7,0.23842466]
[1738122257677,3.2031,3122.0,3121.8,0.04509665]
[1738122257843,3.2031,3122.0,3121.7,0.23842466]
[1738122258043,3.2031,3122.0,3121.8,0.04509665]
[1738122258243,6.726196,3122.2,3121.7,0.23842466]
[1738122258444,3.523236,3122.2,3121.8,0.04509665]
[1738122258644,3.20294,3122.2,3121.7,0.23842466]
[1738122258844,3.203,3122.1,3121.8,0.04509665]
[1738122259040,3.203,3122.1,3121.5,7.17517]
[1738122259277,3.203,3122.1,3121.6,0.04509665]
[1738122260385,6.201,3122.6,3121.6,0.04509665]
[1738122260386,0.55,3122.3,3121.6,0.04509665]
[1738122260544,3.20338,3121.7,3121.6,0.04509665]
[1738122260881,3.604418,3121.7,3121.6,0.04509665]
[1738122261079,3.20349,3121.6,3121.2,0.7637]
[1738122261474,3.20321,3121.9,3121.2,0.7637]
[1738122261675,3.20344,3121.7,3121.2,0.7637]
[1738122261880,3.20347,3121.7,3121.2,0.7637]
[1738122262489,3.20347,3121.7,3121.3,0.23863546]
[1738122263288,3.2035,3121.6,3121.4,0.23863546]
[1738122264890,3.2035,3121.6,3121.2,0.7637]
[1738122265694,3.20345,3121.7,3121.2,0.7637]
[1738122265869,3.20345,3121.7,3121.3,0.23896368]
[1738122267352,3.20345,3121.7,3121.4,0.23896368]
[1738122267556,6.40691,3121.7,3121.4,0.23896368]
[1738122267795,3.20345,3121.7,3121.4,0.23896368]
[1738122268493,3.2035,3121.6,3121.5,0.23896368]
[1738122269594,3.523795,3121.7,3121.1,3.20399]
[1738122270292,6.727275,3121.7,3121.2,0.04371078]
[1738122271101,3.523795,3121.7,3121.2,0.04371078]
[1738122271303,3.20318,3121.9,3121.3,0.23898099]
[1738122271461,3.20318,3121.9,3121.5,0.812]
[1738122271661,3.20318,3121.9,3121.6,0.04371078]
[1738122272315,3.20328,3121.8,3121.6,0.04371078]
[1738122272479,3.20318,3121.9,3121.6,0.04371078]
[1738122272688,6.40644,3121.9,3121.6,0.04371078]
[1738122272871,3.20318,3121.9,3121.6,0.04371078]
[1738122273179,3.20318,3121.9,3121.3,4.01577]
[1738122273381,3.20318,3121.9,3121.7,0.04409731]
[1738122273602,3.20318,3121.9,3121.3,4.01577]
[1738122273770,3.20318,3121.9,3121.8,0.04409731]
[1738122273972,3.20318,3121.9,3121.4,0.23904178]
[1738122274188,3.20318,3121.9,3121.8,0.04409731]
[1738122274387,3.20318,3121.9,3121.4,0.23904178]
[1738122274906,3.20318,3121.9,3121.5,0.04409731]
[1738122275082,3.20318,3121.9,3121.5,0.28313909]
[1738122275968,3.20329,3121.8,3121.5,0.28313909]
[1738122276170,3.20329,3121.8,3121.6,0.23904178]
[1738122276501,3.20313,3122.0,3121.7,0.04264857]
[1738122277904,3.20318,3121.9,3121.4,3.20368]
[1738122278107,3.20318,3121.9,3121.5,0.04255193]
[1738122278670,6.40608,3122.1,3121.5,3.24610193]
[1738122278889,3.20302,3122.1,3121.5,0.04255193]
[1738122279094,3.20309,3122.0,3121.5,0.04255193]
[1738122280305,3.20309,3122.0,3121.6,0.23905545]
[1738122280729,3.20309,3122.0,3121.7,0.04255193]
[1738122281421,3.20309,3122.0,3121.4,3.20361]
[1738122281722,3.20302,3122.1,3121.4,3.20361]
[1738122281925,3.20336,3121.8,3121.5,0.04255193]
[1738122282519,3.20338,3121.7,3121.6,0.04255193]
[1738122282927,3.20338,3121.7,3121.4,3.205]
[1738122283104,3.20338,3121.7,3121.6,0.28163789]